fUST/lending_fUST_20240429
["ID","MTS","AMOUNT","RATE_DAILY","PERIOD"]
[324899383,1714403460114,-500.0,0.00047123,30]
[324899384,1714403460124,-428.05781663,0.00047123,30]
[324899386,1714403460135,-849.64,0.00047123,30]
[324899387,1714403460144,-615.33,0.00047123,30]
[324899388,1714403460154,-507.18,0.00047123,30]
[324899389,1714403460163,-500.0,0.00047123,30]
[324899391,1714403460172,-500.0,0.00047123,30]
[324899392,1714403460182,-500.0,0.00047123,30]
[324899394,1714403460191,-787.88,0.00047123,30]
[324899395,1714403460201,-500.0,0.00047123,30]
[324899397,1714403460210,-500.0,0.00047123,30]
[324899398,1714403460220,-500.0,0.00047123,30]
[324899400,1714403460229,-712.0,0.00047123,30]
[324899401,1714403460238,-772.27,0.00047123,30]
[324899402,1714403460247,-500.0,0.00047123,30]
[324899403,1714403460257,-500.0,0.00047123,30]
[324899404,1714403460267,-500.0,0.00047123,30]
[324899405,1714403460276,-500.0,0.00047123,30]
[324899406,1714403460285,-638.16,0.00047123,30]
[324899407,1714403460295,-940.88,0.00047123,30]
[324899408,1714403460304,-706.66,0.00047123,30]
[324899409,1714403460313,-500.0,0.00047123,30]
[324899410,1714403460324,-500.0,0.00047123,30]
[324899411,1714403460333,-500.0,0.00047123,30]
[324899412,1714403460343,-500.0,0.00047123,30]
[324899413,1714403460353,-500.0,0.00047123,30]
[324899414,1714403460363,-500.0,0.00047123,30]
[324899415,1714403460371,-500.0,0.00047123,30]
[324899416,1714403460383,-500.0,0.00047123,30]
[324899417,1714403460393,-500.0,0.00047123,30]
[324899418,1714403460402,-500.0,0.00047123,30]
[324899419,1714403460411,-500.0,0.00047123,30]
[324899420,1714403460421,-500.0,0.00047123,30]
[324899421,1714403460431,-500.0,0.00047123,30]
[324899422,1714403460440,-500.0,0.00047123,30]
[324899423,1714403460450,-500.0,0.00047123,30]
[324899424,1714403460470,-999.0,0.00047123,18]
[324899425,1714403460487,-752.15,0.00047123,30]
[324899426,1714403460506,-590.87,0.00047123,30]
[324899427,1714403460526,-500.0,0.00047123,30]
[324899428,1714403460543,-987.93,0.00047123,30]
[324899429,1714403460560,-500.0,0.00047123,30]
[324899430,1714403460575,-500.0,0.00047123,30]
[324899431,1714403460591,-582.66,0.00047123,30]
[324899432,1714403460608,-500.0,0.00047123,30]
[324899433,1714403460629,-500.0,0.00047123,30]
[324899434,1714403460642,-627.5,0.00047123,30]
[324899435,1714403460659,-500.0,0.00047123,30]
[324899436,1714403460674,-500.0,0.00047123,30]
[324899437,1714403460690,-500.0,0.00047123,30]
[324899438,1714403460703,-500.05201726,0.00047123,30]
[324899439,1714403460718,-902.95,0.00047123,30]
[324899440,1714403460733,-500.0,0.00047123,30]
[324899441,1714403460747,-385.25,0.00047123,30]
[324899442,1714403460763,-730.68,0.00047123,30]
[324899443,1714403460777,-512.57720613,0.00047123,30]
[324899444,1714403460792,-500.0,0.00047123,30]
[324899445,1714403460806,-599.07,0.00047123,30]
[324899446,1714403460820,-500.0,0.00047123,30]
[324899447,1714403460835,-572.62,0.00047123,30]
[324899448,1714403460852,-500.0,0.00047123,30]
[324899449,1714403460866,-263.62191943,0.00047177,4]
[324899450,1714403460895,-193.65318335,0.00047178,4]
[324899451,1714403460908,-255.43689662,0.00047178,4]
[324899452,1714403460923,-381.83207654,0.000473,2]
[324899453,1714403460938,-500.0,0.00047397,30]
[324899454,1714403460952,-347.8472903,0.00047397,30]
[324899455,1714403460967,-500.0,0.00047397,30]
[324899456,1714403460985,-500.0,0.00047397,30]
[324899457,1714403461000,-500.0,0.00047397,30]
[324899458,1714403461014,-554.38,0.00047397,30]
[324899459,1714403461029,-500.0,0.00047397,30]
[324899460,1714403461044,-500.0,0.00047397,30]
[324899461,1714403461062,-692.31,0.00047397,30]
[324899462,1714403461077,-500.0,0.00047397,30]
[324899463,1714403461092,-500.0,0.00047397,30]
[324899464,1714403461107,-500.0,0.00047397,30]
[324899465,1714403461122,-500.0,0.00047397,30]
[324899466,1714403461138,-500.0,0.00047397,30]
[324899467,1714403461152,-645.73,0.00047397,30]
[324899468,1714403461167,-500.0,0.00047397,30]
[324899469,1714403461181,-500.0,0.00047397,30]
[324899470,1714403461283,-500.0,0.00047397,30]
[324899471,1714403461293,-500.0,0.00047397,30]
[324899472,1714403461302,-500.0,0.00047397,30]
[324899473,1714403461312,-500.0,0.00047397,30]
[324899474,1714403461322,-500.0,0.00047397,30]
[324899475,1714403461331,-500.0,0.00047397,30]
[324899476,1714403461340,-609.19,0.00047397,30]
[324899477,1714403461349,-580.34,0.00047397,30]
[324899478,1714403461359,-500.0,0.00047397,30]
[324899479,1714403461368,-500.0,0.00047397,30]
[324899480,1714403461380,-500.0,0.00047397,30]
[324899481,1714403461389,-698.28,0.00047397,30]
[324899482,1714403461400,-500.0,0.00047397,30]
[324899483,1714403461409,-500.0,0.00047397,30]
[324899484,1714403461418,-593.74,0.00047397,30]
[324899485,1714403461427,-517.52,0.00047397,30]
[324899486,1714403461436,-500.0,0.00047397,30]
[324899487,1714403461446,-580.52,0.00047397,30]
[324899489,1714403461455,-500.0,0.00047397,30]
[324899491,1714403461465,-500.0,0.00047397,30]
[324899493,1714403461474,-500.0,0.00047397,30]
[324899495,1714403461483,-660.77,0.00047397,30]
[324899497,1714403461492,-500.0,0.00047397,30]
[324899499,1714403461504,-500.02,0.00047397,30]
[324899501,1714403461513,-500.0,0.00047397,30]
[324899503,1714403461523,-151.0,0.00047397,7]
[324899505,1714403461531,-500.0,0.00047397,30]
[324899506,1714403461541,-500.0,0.00047397,30]
[324899507,1714403461550,-500.0,0.00047397,30]
[324899508,1714403461559,-500.0,0.00047397,30]
[324899509,1714403461568,-374.17169982,0.00047397,30]
[324899510,1714403461577,-500.0,0.00047397,30]
[324899511,1714403461587,-572.38,0.00047397,30]
[324899512,1714403461596,-500.0,0.00047397,14]
[324899513,1714403461605,-515.60113613,0.00047397,30]
[324899514,1714403461615,-594.15,0.00047397,30]
[324899515,1714403461624,-500.0,0.00047397,30]
[324899516,1714403461635,-500.0,0.00047397,30]
[324899517,1714403461644,-500.0,0.00047397,30]
[324899518,1714403461654,-500.0,0.00047397,30]
[324899519,1714403461663,-500.0,0.00047397,30]
[324899520,1714403461673,-500.0,0.00047397,30]
[324899521,1714403461682,-151.0,0.00047397,7]
[324899522,1714403461691,-500.0,0.00047397,30]
[324899523,1714403461701,-500.0,0.00047397,30]
[324899524,1714403461710,-500.0,0.00047397,30]
[324899525,1714403461720,-957.76,0.00047397,30]
[324899526,1714403461729,-500.0,0.00047397,30]
[324899527,1714403461739,-500.0,0.00047397,30]
[324899528,1714403461748,-500.0,0.00047397,30]
[324899529,1714403461757,-881.98,0.00047397,30]
[324899530,1714403461766,-500.0,0.00047397,30]
[324899531,1714403461776,-500.0,0.00047397,30]
[324899532,1714403461786,-905.7,0.00047397,30]
[324899533,1714403461795,-500.0,0.00047397,30]
[324899534,1714403461804,-167.443342,0.00047397,7]
[324899535,1714403461813,-433.81369301,0.00047397,30]
[324899536,1714403461823,-882.72,0.00047397,120]
[324899537,1714403461832,-500.0,0.00047397,30]
[324899538,1714403461841,-500.0,0.00047397,3]
[324899539,1714403461850,-500.0,0.00047397,30]
[324899540,1714403461859,-500.0,0.00047397,30]
[324899541,1714403461869,-500.0,0.00047397,30]
[324899542,1714403461879,-500.0,0.00047397,30]
[324899543,1714403461891,-500.0,0.00047397,30]
[324899544,1714403461901,-652.74,0.00047397,30]
[324899545,1714403461912,-534.54,0.00047397,30]
[324899546,1714403461921,-300.0,0.00047397,7]
[324899547,1714403461931,-169.82685591,0.00047397,30]
[324899548,1714403461940,-500.0,0.00047397,30]
[324899549,1714403461949,-171.60319268,0.00047397,30]
[324899550,1714403461959,-500.0,0.00047397,30]
[324899551,1714403461971,-500.0,0.00047397,30]
[324899552,1714403461981,-500.0,0.00047397,2]
[324899553,1714403461991,-654.11,0.00047397,30]
[324899554,1714403462000,-1249.99,0.00047397,30]
[324899555,1714403462010,-500.0,0.00047397,30]
[324899556,1714403462020,-173.0,0.00047397,2]
[324899557,1714403462029,-500.0,0.00047397,30]
[324899558,1714403462039,-500.0,0.00047397,30]
[324899559,1714403462049,-903.12,0.00047397,7]
[324899560,1714403462062,-500.0,0.00047397,30]
[324899561,1714403462072,-1203.71,0.00047397,30]
[324899562,1714403462081,-809.28,0.00047397,30]
[324899563,1714403462091,-500.0,0.00047397,30]
[324899564,1714403462100,-500.29,0.00047397,30]
[324899565,1714403462109,-500.0,0.00047397,30]
[324899566,1714403462118,-500.0,0.00047397,30]
[324899567,1714403462129,-500.0,0.00047397,30]
[324899568,1714403462138,-500.0,0.00047397,30]
[324899569,1714403462148,-500.0,0.00047397,30]
[324899570,1714403462157,-500.0,0.00047397,30]
[324899571,1714403462166,-602.54,0.00047397,30]
[324899572,1714403462175,-520.25,0.00047397,30]
[324899573,1714403462185,-500.0,0.00047397,30]
[324899574,1714403462194,-151.0,0.00047397,7]
[324899575,1714403462203,-1009.15,0.00047397,30]
[324899576,1714403462212,-782.67,0.00047397,30]
[324899577,1714403462222,-500.0,0.00047397,30]
[324899578,1714403462231,-500.0,0.00047397,30]
[324899579,1714403462240,-1067.904186,0.00047397,7]
[324899580,1714403462249,-500.0,0.00047397,30]
[324899581,1714403462258,-1067.904186,0.00047397,7]
[324899582,1714403462267,-260.50829084,0.00047397,30]
[324899583,1714403462277,-519.15,0.00047397,30]
[324899584,1714403462286,-500.0,0.00047397,30]
[324899585,1714403462296,-615.64,0.00047397,30]
[324899586,1714403462306,-500.0,0.00047397,30]
[324899587,1714403462315,-500.0,0.00047397,30]
[324899588,1714403462325,-500.0,0.00047397,30]
[324899589,1714403462334,-500.0,0.00047397,30]
[324899590,1714403462343,-500.0,0.00047397,30]
[324899591,1714403462352,-1092.826854,0.00047397,7]
[324899592,1714403462362,-872.67,0.00047397,30]
[324899593,1714403462371,-1092.826854,0.00047397,7]
[324899594,1714403462382,-500.0,0.00047397,30]
[324899595,1714403462391,-500.0,0.00047397,30]
[324899596,1714403462401,-151.0,0.00047397,7]
[324899597,1714403462411,-500.0,0.00047397,30]
[324899598,1714403462420,-600.73,0.00047397,30]
[324899599,1714403462492,-500.0,0.00047397,30]
[324899600,1714403462502,-500.0,0.00047397,30]
[324899601,1714403462511,-505.91,0.00047397,30]
[324899602,1714403462521,-501.2,0.00047397,30]
[324899603,1714403462530,-850.95,0.00047397,30]
[324899604,1714403462539,-510.3,0.00047397,30]
[324899605,1714403462549,-151.0,0.00047397,7]
[324899606,1714403462558,-1103.47,0.00047397,30]
[324899607,1714403462568,-764.98,0.00047397,30]
[324899608,1714403462577,-500.0,0.00047397,30]
[324899609,1714403462586,-200.0,0.00047397,30]
[324899610,1714403462595,-500.0,0.00047397,30]
[324899611,1714403462605,-880.79,0.00047397,30]
[324899612,1714403462614,-500.0,0.00047397,30]
[324899613,1714403462624,-500.0,0.00047397,30]
[324899614,1714403462636,-502.4,0.00047397,30]
[324899615,1714403462645,-949.860443,0.00047397,7]
[324899616,1714403462655,-949.860443,0.00047397,7]
[324899617,1714403462665,-500.0,0.00047397,30]
[324899618,1714403462674,-541.86,0.00047397,30]
[324899619,1714403462684,-500.0,0.00047397,30]
[324899620,1714403462694,-500.0,0.00047397,30]
[324899621,1714403462703,-7970.54,0.00047397,30]
[324899622,1714403462712,-590.14,0.00047397,30]
[324899623,1714403462722,-500.0,0.00047397,30]
[324899624,1714403462732,-500.0,0.00047397,30]
[324899625,1714403462741,-151.0,0.00047397,7]
[324899626,1714403462751,-821.44,0.00047397,30]
[324899627,1714403462761,-780.18,0.00047397,30]
[324899628,1714403462771,-720.95,0.00047397,30]
[324899629,1714403462781,-500.0,0.00047397,30]
[324899630,1714403462791,-500.0,0.00047397,30]
[324899631,1714403462800,-500.0,0.00047397,30]
[324899632,1714403462810,-353.21011782,0.00047397,30]
[324899633,1714403462819,-1080.25,0.00047397,30]
[324899634,1714403462828,-500.0,0.00047397,30]
[324899635,1714403462838,-500.0,0.00047397,30]
[324899636,1714403462847,-500.0,0.00047397,30]
[324899637,1714403462856,-337.16472533,0.00047397,30]
[324899638,1714403462866,-675.68,0.00047397,30]
[324899639,1714403462876,-151.0,0.00047397,7]
[324899640,1714403462887,-500.0,0.00047397,30]
[324899642,1714403462897,-575.374773,0.00047397,7]
[324899644,1714403462907,-500.0,0.00047397,30]
[324899646,1714403462916,-575.374773,0.00047397,7]
[324899647,1714403462926,-611.97,0.00047397,30]
[324899648,1714403462944,-163.70979094,0.00047397,30]
[324899649,1714403462953,-151.0,0.00047397,7]
[324899651,1714403462963,-505.7,0.00047397,30]
[324899653,1714403462974,-500.0,0.00047397,30]
[324899654,1714403462987,-500.0,0.00047397,30]
[324899656,1714403462997,-815.51,0.00047397,30]
[324899657,1714403463007,-1100.15,0.00047397,30]
[324899658,1714403463016,-500.0,0.00047397,21]
[324899659,1714403463029,-500.0,0.00047397,30]
[324899660,1714403463038,-574.58,0.00047397,30]
[324899661,1714403463048,-151.0,0.00047397,7]
[324899662,1714403463058,-500.0,0.00047397,30]
[324899663,1714403463068,-407.47974512,0.00047397,30]
[324899664,1714403463077,-1000.812377,0.00047397,7]
[324899665,1714403463087,-500.0,0.00047397,30]
[324899667,1714403463097,-500.0,0.00047397,30]
[324899669,1714403463107,-1000.812377,0.00047397,7]
[324899671,1714403463116,-1146.41,0.00047397,30]
[324899673,1714403463125,-466.666828,0.00047397,7]
[324899675,1714403463136,-574.15,0.00047397,30]
[324899677,1714403463146,-500.0,0.00047397,30]
[324899679,1714403463155,-500.0,0.00047397,30]
[324899681,1714403463164,-466.666828,0.00047397,7]
[324899682,1714403463173,-500.0,0.00047397,30]
[324899683,1714403463183,-500.0,0.00047397,30]
[324899684,1714403463192,-500.0,0.00047397,30]
[324899686,1714403463202,-500.0,0.00047397,30]
[324899688,1714403463211,-500.0,0.00047397,30]
[324899690,1714403463221,-760.28,0.00047397,30]
[324899692,1714403463230,-500.0,0.00047397,30]
[324899693,1714403463239,-849.64,0.00047397,30]
[324899694,1714403463249,-615.33,0.00047397,30]
[324899695,1714403463258,-507.18,0.00047397,30]
[324899696,1714403463267,-192.993578,0.00047397,7]
[324899697,1714403463277,-500.0,0.00047397,30]
[324899698,1714403463286,-500.0,0.00047397,30]
[324899699,1714403463295,-500.0,0.00047397,30]
[324899700,1714403463305,-787.88,0.00047397,30]
[324899701,1714403463315,-500.0,0.00047397,30]
[324899702,1714403463324,-312.807001,0.00047397,7]
[324899703,1714403463333,-500.0,0.00047397,30]
[324899704,1714403463342,-312.807001,0.00047397,7]
[324899705,1714403463351,-500.0,0.00047397,30]
[324899706,1714403463361,-712.0,0.00047397,30]
[324899707,1714403463370,-772.27,0.00047397,30]
[324899708,1714403463379,-500.0,0.00047397,30]
[324899709,1714403463389,-500.0,0.00047397,30]
[324899710,1714403463398,-500.0,0.00047397,30]
[324899711,1714403463408,-500.0,0.00047397,30]
[324899712,1714403463417,-638.16,0.00047397,30]
[324899713,1714403463426,-940.88,0.00047397,30]
[324899714,1714403463435,-706.66,0.00047397,30]
[324899715,1714403463445,-500.0,0.00047397,30]
[324899716,1714403463454,-500.0,0.00047397,30]
[324899717,1714403463464,-500.0,0.00047397,30]
[324899718,1714403463473,-500.0,0.00047397,30]
[324899719,1714403463482,-500.0,0.00047397,30]
[324899720,1714403463491,-500.0,0.00047397,30]
[324899721,1714403463500,-151.0,0.00047397,7]
[324899722,1714403463510,-500.0,0.00047397,30]
[324899723,1714403463519,-390.20709668,0.00047397,30]
[324899724,1714403463528,-302.016416,0.00047397,7]
[324899725,1714403463538,-500.0,0.00047397,30]
[324899726,1714403463548,-151.0,0.00047397,7]
[324899727,1714403463616,-500.0,0.00047397,30]
[324899728,1714403463627,-302.016416,0.00047397,7]
[324899729,1714403463637,-500.0,0.00047397,30]
[324899730,1714403463647,-500.0,0.00047397,30]
[324899731,1714403463657,-501.64131969,0.00047397,30]
[324899732,1714403463666,-752.15,0.00047397,30]
[324899733,1714403463676,-590.87,0.00047397,30]
[324899734,1714403463685,-260.4449991,0.00047397,30]
[324899735,1714403463695,-987.93,0.00047397,30]
[324899736,1714403463705,-500.0,0.00047397,30]
[324899737,1714403463714,-500.0,0.00047397,30]
[324899738,1714403463724,-582.66,0.00047397,30]
[324899739,1714403463734,-569.047712,0.00047397,7]
[324899740,1714403463743,-190.869089,0.00047397,7]
[324899741,1714403463753,-500.0,0.00047397,30]
[324899742,1714403463762,-500.0,0.00047397,30]
[324899743,1714403463773,-627.5,0.00047397,30]
[324899744,1714403463782,-190.869089,0.00047397,7]
[324899745,1714403463792,-500.0,0.00047397,30]
[324899746,1714403463802,-569.047712,0.00047397,7]
[324899747,1714403463811,-500.0,0.00047397,30]
[324899748,1714403463822,-902.95,0.00047397,30]
[324899749,1714403463831,-500.0,0.00047397,30]
[324899750,1714403463840,-615.913097,0.00047397,7]
[324899751,1714403463850,-615.913097,0.00047397,7]
[324899752,1714403463881,-730.68,0.00047397,30]
[324899753,1714403463890,-537.75,0.00047397,30]
[324899754,1714403463901,-599.07,0.00047397,30]
[324899755,1714403463910,-500.0,0.00047397,30]
[324899756,1714403463919,-572.62,0.00047397,30]
[324899757,1714403463929,-1347.781646,0.00047489,120]
[324899758,1714403463938,-221.65555556,0.00047534,120]
[324899759,1714403463948,-500.0,0.00047671,30]
[324899760,1714403463958,-199.38129154,0.00047671,30]
[324899761,1714403463967,-500.0,0.00047671,30]
[324899762,1714403463980,-554.38,0.00047671,30]
[324899763,1714403463990,-500.0,0.00047671,30]
[324899764,1714403464000,-500.0,0.00047671,30]
[324899765,1714403464009,-692.31,0.00047671,30]
[324899766,1714403464020,-500.0,0.00047671,30]
[324899767,1714403464030,-500.0,0.00047671,30]
[324899768,1714403464040,-500.0,0.00047671,30]
[324899769,1714403464050,-500.0,0.00047671,30]
[324899770,1714403464062,-500.0,0.00047671,30]
[324899771,1714403464072,-645.73,0.00047671,30]
[324899772,1714403464082,-500.0,0.00047671,30]
[324899773,1714403464092,-500.0,0.00047671,30]
[324899774,1714403464103,-500.0,0.00047671,30]
[324899775,1714403464112,-500.0,0.00047671,30]
[324899776,1714403464122,-421.20741262,0.00047671,30]
[324899777,1714403464137,-500.0,0.00047671,30]
[324899778,1714403464147,-500.0,0.00047671,30]
[324899779,1714403464156,-500.0,0.00047671,30]
[324899780,1714403464165,-580.34,0.00047671,30]
[324899781,1714403464175,-609.19,0.00047671,30]
[324899782,1714403464185,-500.0,0.00047671,30]
[324899783,1714403464194,-500.0,0.00047671,30]
[324899784,1714403464204,-500.0,0.00047671,30]
[324899785,1714403464214,-698.28,0.00047671,30]
[324899786,1714403464223,-501.29110164,0.00047671,30]
[324899787,1714403464233,-500.0,0.00047671,30]
[324899788,1714403464242,-593.74,0.00047671,30]
[324899789,1714403464252,-517.52,0.00047671,30]
[324899790,1714403464260,-500.0,0.00047671,30]
[324899791,1714403464270,-580.52,0.00047671,30]
[324899792,1714403464279,-500.0,0.00047671,30]
[324899793,1714403464289,-500.0,0.00047671,30]
[324899794,1714403464298,-500.0,0.00047671,30]
[324899795,1714403464307,-660.77,0.00047671,30]
[324899796,1714403464317,-500.0,0.00047671,30]
[324899797,1714403464326,-500.02,0.00047671,30]
[324899798,1714403464335,-500.0,0.00047671,30]
[324899799,1714403464344,-500.0,0.00047671,30]
[324899800,1714403464353,-500.0,0.00047671,30]
[324899801,1714403464363,-500.0,0.00047671,30]
[324899802,1714403464372,-500.0,0.00047671,30]
[324899803,1714403464384,-325.34256236,0.00047671,30]
[324899804,1714403464394,-572.38,0.00047671,30]
[324899805,1714403464404,-500.0,0.00047671,14]
[324899806,1714403464413,-594.15,0.00047671,30]
[324899807,1714403464422,-500.0,0.00047671,30]
[324899808,1714403464432,-500.0,0.00047671,30]
[324899809,1714403464442,-500.0,0.00047671,30]
[324899810,1714403464451,-500.0,0.00047671,30]
[324899811,1714403464460,-500.0,0.00047671,30]
[324899812,1714403464469,-500.0,0.00047671,30]
[324899813,1714403464478,-500.0,0.00047671,30]
[324899814,1714403464487,-500.0,0.00047671,30]
[324899815,1714403464496,-500.0,0.00047671,30]
[324899816,1714403464507,-500.0,0.00047671,30]
[324899817,1714403464516,-957.76,0.00047671,30]
[324899818,1714403464525,-500.0,0.00047671,30]
[324899819,1714403464534,-500.0,0.00047671,30]
[324899820,1714403464543,-881.98,0.00047671,30]
[324899821,1714403464552,-500.0,0.00047671,30]
[324899822,1714403464561,-905.7,0.00047671,30]
[324899823,1714403464571,-500.0,0.00047671,30]
[324899824,1714403464580,-500.0,0.00047671,30]
[324899825,1714403464589,-882.72,0.00047671,120]
[324899826,1714403464599,-500.0,0.00047671,30]
[324899827,1714403464608,-500.0,0.00047671,3]
[324899828,1714403464676,-500.0,0.00047671,30]
[324899829,1714403464685,-500.0,0.00047671,30]
[324899830,1714403464695,-500.0,0.00047671,30]
[324899831,1714403464704,-500.0,0.00047671,30]
[324899832,1714403464713,-500.0,0.00047671,30]
[324899833,1714403464723,-652.74,0.00047671,30]
[324899834,1714403464732,-534.54,0.00047671,30]
[324899835,1714403464741,-300.0,0.00047671,7]
[324899836,1714403464751,-500.0,0.00047671,30]
[324899837,1714403464760,-500.0,0.00047671,30]
[324899838,1714403464769,-500.0,0.00047671,30]
[324899839,1714403464778,-500.0,0.00047671,2]
[324899840,1714403464788,-654.11,0.00047671,30]
[324899841,1714403464797,-1249.99,0.00047671,30]
[324899842,1714403464807,-500.0,0.00047671,30]
[324899843,1714403464816,-500.0,0.00047671,30]
[324899844,1714403464826,-500.0,0.00047671,30]
[324899845,1714403464835,-903.12,0.00047671,7]
[324899846,1714403464845,-500.0,0.00047671,30]
[324899847,1714403464854,-1203.71,0.00047671,30]
[324899848,1714403464864,-500.0,0.00047671,30]
[324899849,1714403464873,-809.28,0.00047671,30]
[324899850,1714403464884,-500.29,0.00047671,30]
[324899851,1714403464893,-500.0,0.00047671,30]
[324899852,1714403464904,-500.0,0.00047671,30]
[324899853,1714403464914,-500.0,0.00047671,30]
[324899854,1714403464923,-500.0,0.00047671,30]
[324899855,1714403464933,-500.0,0.00047671,30]
[324899856,1714403464942,-500.0,0.00047671,30]
[324899857,1714403464952,-602.54,0.00047671,30]
[324899858,1714403464961,-520.25,0.00047671,30]
[324899859,1714403464975,-500.0,0.00047671,30]
[324899860,1714403464983,-1009.15,0.00047671,30]
[324899861,1714403464993,-782.67,0.00047671,30]
[324899862,1714403465002,-500.0,0.00047671,30]
[324899863,1714403465013,-500.0,0.00047671,30]
[324899864,1714403465023,-500.0,0.00047671,30]
[324899865,1714403465033,-519.15,0.00047671,30]
[324899866,1714403465042,-500.0,0.00047671,30]
[324899867,1714403465052,-615.64,0.00047671,30]
[324899868,1714403465063,-500.0,0.00047671,30]
[324899869,1714403465072,-500.0,0.00047671,30]
[324899870,1714403465082,-500.0,0.00047671,30]
[324899871,1714403465091,-500.0,0.00047671,30]
[324899872,1714403465101,-500.0,0.00047671,30]
[324899873,1714403465110,-872.67,0.00047671,30]
[324899874,1714403465119,-500.0,0.00047671,30]
[324899875,1714403465137,-500.0,0.00047671,30]
[324899876,1714403465155,-500.0,0.00047671,30]
[324899877,1714403465172,-600.73,0.00047671,30]
[324899878,1714403465191,-500.0,0.00047671,30]
[324899879,1714403465211,-500.0,0.00047671,30]
[324899880,1714403465230,-505.91,0.00047671,30]
[324899881,1714403465247,-501.2,0.00047671,30]
[324899882,1714403465262,-850.95,0.00047671,30]
[324899883,1714403465281,-510.3,0.00047671,30]
[324899884,1714403465302,-1103.47,0.00047671,30]
[324899885,1714403465316,-764.98,0.00047671,30]
[324899886,1714403465332,-500.0,0.00047671,30]
[324899887,1714403465349,-200.0,0.00047671,30]
[324899888,1714403465365,-880.79,0.00047671,30]
[324899889,1714403465383,-500.0,0.00047671,30]
[324899890,1714403465398,-500.0,0.00047671,30]
[324899891,1714403465412,-502.4,0.00047671,30]
[324899892,1714403465427,-500.0,0.00047671,30]
[324899893,1714403465443,-541.86,0.00047671,30]
[324899894,1714403465458,-500.0,0.00047671,30]
[324899895,1714403465473,-7970.54,0.00047671,30]
[324899896,1714403465488,-590.14,0.00047671,30]
[324899897,1714403465504,-500.0,0.00047671,30]
[324899898,1714403465519,-821.44,0.00047671,30]
[324899899,1714403465534,-780.18,0.00047671,30]
[324899900,1714403465548,-720.95,0.00047671,30]
[324899901,1714403465563,-500.0,0.00047671,30]
[324899902,1714403465577,-500.0,0.00047671,30]
[324899903,1714403465602,-500.0,0.00047671,30]
[324899904,1714403465635,-1080.25,0.00047671,30]
[324899905,1714403465658,-500.0,0.00047671,30]
[324899906,1714403465681,-500.0,0.00047671,30]
[324899907,1714403465699,-500.0,0.00047671,30]
[324899908,1714403465717,-675.68,0.00047671,30]
[324899909,1714403465735,-500.0,0.00047671,30]
[324899910,1714403465752,-500.0,0.00047671,30]
[324899911,1714403465767,-611.97,0.00047671,30]
[324899912,1714403465784,-505.7,0.00047671,30]
[324899913,1714403465800,-500.0,0.00047671,30]
[324899914,1714403465816,-500.0,0.00047671,30]